[Event "Live Chess"]
[Site "Chess.com"]
[Date "2023.05.21"]
[Round "-"]
[White "nigelst"]
[Black "Ed_Knox"]
[Result "1-0"]
[WhiteElo "1806"]
[BlackElo "1438"]
[TimeControl "300"]
[EndTime "16:08:19 PDT"]
[Termination "nigelst won by checkmate"]

1. e4 {[%clk 0:04:58]} 1... d5 {[%clk 0:04:58]} 2. exd5 {[%clk 0:04:56.1]} 2...
Qxd5 {[%clk 0:04:57.5]} 3. Nc3 {[%clk 0:04:54.8]} 3... Qd8 {[%clk 0:04:57]} 4.
d4 {[%clk 0:04:52.6]} 4... c6 {[%clk 0:04:56.5]} 5. Nf3 {[%clk 0:04:51.6]} 5...
Bf5 {[%clk 0:04:55.9]} 6. Bc4 {[%clk 0:04:49.4]} 6... e6 {[%clk 0:04:54.5]} 7.
O-O {[%clk 0:04:47]} 7... Nf6 {[%clk 0:04:53.8]} 8. Re1 {[%clk 0:04:45.8]} 8...
Be7 {[%clk 0:04:53]} 9. Ne5 {[%clk 0:04:44]} 9... O-O {[%clk 0:04:51.4]} 10. Be3
{[%clk 0:04:37.6]} 10... Nbd7 {[%clk 0:04:49.3]} 11. Bd3 {[%clk 0:04:35.4]}
11... Bxd3 {[%clk 0:04:43.7]} 12. Nxd3 {[%clk 0:04:29.6]} 12... Nd5 {[%clk
0:04:31.3]} 13. Nxd5 {[%clk 0:04:26.5]} 13... cxd5 {[%clk 0:04:27.7]} 14. Bf4
{[%clk 0:04:24.7]} 14... Bg5 {[%clk 0:04:21.5]} 15. Qd2 {[%clk 0:04:21.6]} 15...
Bxf4 {[%clk 0:04:19.8]} 16. Qxf4 {[%clk 0:04:20.2]} 16... Nf6 {[%clk 0:04:16]}
17. Ne5 {[%clk 0:04:17.2]} 17... Qb8 {[%clk 0:04:08.5]} 18. c3 {[%clk
0:04:04.4]} 18... Nd7 {[%clk 0:04:00]} 19. Qg3 {[%clk 0:04:00.4]} 19... Nf6
{[%clk 0:03:39.6]} 20. f3 {[%clk 0:03:51.3]} 20... a5 {[%clk 0:03:31.8]} 21. Qh4
{[%clk 0:03:41.8]} 21... Qd8 {[%clk 0:03:23.5]} 22. Ng4 {[%clk 0:03:34.3]} 22...
Nxg4 {[%clk 0:03:07.3]} 23. Qxg4 {[%clk 0:03:31.2]} 23... Rc8 {[%clk 0:03:00.7]}
24. Re5 {[%clk 0:03:28.5]} 24... b5 {[%clk 0:02:54.5]} 25. Rh5 {[%clk
0:03:25.4]} 25... Qf6 {[%clk 0:02:33.3]} 26. Re1 {[%clk 0:03:20.6]} 26... g6
{[%clk 0:02:27.3]} 27. Rhe5 {[%clk 0:03:14.7]} 27... b4 {[%clk 0:02:16.7]} 28.
cxb4 {[%clk 0:03:10.8]} 28... axb4 {[%clk 0:02:14.3]} 29. R5e2 {[%clk
0:03:05.3]} 29... Rc4 {[%clk 0:02:09.2]} 30. Rd1 {[%clk 0:02:58.3]} 30... Rfc8
{[%clk 0:02:05.2]} 31. h4 {[%clk 0:02:51.5]} 31... Rc1 {[%clk 0:01:52.9]} 32.
Ree1 {[%clk 0:02:47]} 32... Rxd1 {[%clk 0:01:49.3]} 33. Rxd1 {[%clk 0:02:45.3]}
33... Rc2 {[%clk 0:01:48.5]} 34. h5 {[%clk 0:02:39.6]} 34... Rxb2 {[%clk
0:01:40.7]} 35. h6 {[%clk 0:02:38]} 35... Rxa2 {[%clk 0:01:38.9]} 36. Qg3 {[%clk
0:02:37]} 36... b3 {[%clk 0:01:30.9]} 37. Qb8+ {[%clk 0:02:32.9]} 37... Qd8
{[%clk 0:01:22.1]} 38. Qxd8# {[%clk 0:02:31]} 1-0

[Event "Live Chess"]
[Site "Chess.com"]
[Date "2023.05.21"]
[Round "-"]
[White "EdenHazard8"]
[Black "ZackirtyChess"]
[Result "1-0"]
[WhiteElo "2034"]
[BlackElo "1170"]
[TimeControl "300"]
[EndTime "16:08:26 PDT"]
[Termination "EdenHazard8 won by resignation"]

1. e4 {[%clk 0:04:58.5]} 1... d5 {[%clk 0:04:56.3]} 2. exd5 {[%clk 0:04:57.3]}
2... Qxd5 {[%clk 0:04:52]} 3. Nc3 {[%clk 0:04:57.2]} 3... Qa5 {[%clk 0:04:50.4]}
4. d4 {[%clk 0:04:57.1]} 4... Nf6 {[%clk 0:04:47.6]} 5. Nf3 {[%clk 0:04:57]}
5... Nc6 {[%clk 0:04:46.6]} 6. Bd2 {[%clk 0:04:55.5]} 6... Qb6 {[%clk
0:04:43.5]} 7. Bc4 {[%clk 0:04:51.5]} 7... Qxb2 {[%clk 0:04:39.9]} 8. Rb1 {[%clk
0:04:50]} 8... Qa3 {[%clk 0:04:37.4]} 9. Rb3 {[%clk 0:04:49.4]} 9... Qa5 {[%clk
0:04:33.9]} 10. Nd5 {[%clk 0:04:48.5]} 10... Qxa2 {[%clk 0:04:26.2]} 11. Nxc7+
{[%clk 0:04:47]} 11... Kd8 {[%clk 0:04:23.7]} 12. Nxa8 {[%clk 0:04:46.9]} 12...
Na5 {[%clk 0:04:18.2]} 13. Bxa5+ {[%clk 0:04:22.3]} 13... b6 {[%clk 0:04:16]}
14. Bc3 {[%clk 0:04:19.6]} 1-0

[Event "Live Chess"]
[Site "Chess.com"]
[Date "2023.05.21"]
[Round "-"]
[White "Cimon"]
[Black "Olisingapore"]
[Result "1-0"]
[WhiteElo "1869"]
[BlackElo "1836"]
[TimeControl "300"]
[EndTime "16:08:27 PDT"]
[Termination "Cimon won by checkmate"]

1. Nf3 {[%clk 0:04:58.2]} 1... d5 {[%clk 0:04:56.9]} 2. d4 {[%clk 0:04:56.9]}
2... c5 {[%clk 0:04:56.1]} 3. c3 {[%clk 0:04:55.3]} 3... Nc6 {[%clk 0:04:55.6]}
4. Bf4 {[%clk 0:04:53.4]} 4... Bf5 {[%clk 0:04:54.5]} 5. e3 {[%clk 0:04:51.9]}
5... Nf6 {[%clk 0:04:54.1]} 6. h3 {[%clk 0:04:50.3]} 6... e6 {[%clk 0:04:49.4]}
7. Bd3 {[%clk 0:04:48.6]} 7... Bxd3 {[%clk 0:04:42.8]} 8. Qxd3 {[%clk
0:04:47.3]} 8... c4 {[%clk 0:04:42.5]} 9. Qc2 {[%clk 0:04:44.1]} 9... b5 {[%clk
0:04:40.3]} 10. Nbd2 {[%clk 0:04:41.6]} 10... Be7 {[%clk 0:04:34.4]} 11. O-O
{[%clk 0:04:39.2]} 11... O-O {[%clk 0:04:31.8]} 12. e4 {[%clk 0:04:37.3]} 12...
Nh5 {[%clk 0:04:11.9]} 13. Bh2 {[%clk 0:04:33.8]} 13... a5 {[%clk 0:03:57.4]}
14. g4 {[%clk 0:04:01.9]} 14... Nf6 {[%clk 0:03:52.5]} 15. e5 {[%clk 0:04:00.1]}
15... Nd7 {[%clk 0:03:50.1]} 16. Ne1 {[%clk 0:03:54.4]} 16... b4 {[%clk
0:03:49.3]} 17. f4 {[%clk 0:03:52.6]} 17... a4 {[%clk 0:03:38.4]} 18. Ng2 {[%clk
0:03:27.1]} 18... a3 {[%clk 0:03:29.5]} 19. b3 {[%clk 0:03:18.1]} 19... bxc3
{[%clk 0:03:26.5]} 20. Qxc3 {[%clk 0:03:17]} 20... Bb4 {[%clk 0:03:23.9]} 21.
Qe3 {[%clk 0:03:11.5]} 21... Bxd2 {[%clk 0:03:20.7]} 22. Qxd2 {[%clk 0:03:09.2]}
22... cxb3 {[%clk 0:03:18.4]} 23. axb3 {[%clk 0:03:07.6]} 23... Qb6 {[%clk
0:03:15.5]} 24. Rfd1 {[%clk 0:02:54.7]} 24... Qxb3 {[%clk 0:03:05.2]} 25. f5
{[%clk 0:02:46.7]} 25... Nb6 {[%clk 0:02:54.1]} 26. f6 {[%clk 0:02:40.4]} 26...
g6 {[%clk 0:02:53.4]} 27. Qh6 {[%clk 0:02:36.9]} 27... Qxd1+ {[%clk 0:02:29.9]}
28. Rxd1 {[%clk 0:02:34.7]} 28... a2 {[%clk 0:02:28.2]} 29. Qg7# {[%clk
0:02:32.9]} 1-0

[Event "Live Chess"]
[Site "Chess.com"]
[Date "2023.05.21"]
[Round "-"]
[White "Jo1ts"]
[Black "smoggyrabbit"]
[Result "0-1"]
[WhiteElo "779"]
[BlackElo "1698"]
[TimeControl "300"]
[EndTime "16:08:29 PDT"]
[Termination "smoggyrabbit won by resignation"]

1. d4 {[%clk 0:04:51.3]} 1... e6 {[%clk 0:04:59.1]} 2. Nf3 {[%clk 0:04:48.1]}
2... f5 {[%clk 0:04:58]} 3. Bf4 {[%clk 0:04:40.1]} 3... Nf6 {[%clk 0:04:54.8]}
4. e3 {[%clk 0:04:38.6]} 4... b6 {[%clk 0:04:53.3]} 5. Bd3 {[%clk 0:04:34.2]}
5... Bb7 {[%clk 0:04:52.2]} 6. O-O {[%clk 0:04:29.6]} 6... Be7 {[%clk
0:04:51.2]} 7. c3 {[%clk 0:04:22]} 7... Ne4 {[%clk 0:04:46.5]} 8. Qc2 {[%clk
0:04:17]} 8... O-O {[%clk 0:04:42.3]} 9. Nbd2 {[%clk 0:04:16]} 9... d5 {[%clk
0:04:35.9]} 10. Ne5 {[%clk 0:04:11.8]} 10... g5 {[%clk 0:04:27.7]} 11. Bxg5
{[%clk 0:03:50.2]} 11... Bxg5 {[%clk 0:04:22.3]} 12. f3 {[%clk 0:03:47]} 12...
Bxe3+ {[%clk 0:04:20.3]} 0-1

[Event "Live Chess"]
[Site "Chess.com"]
[Date "2023.05.21"]
[Round "-"]
[White "Shepherds_Pie"]
[Black "Delacorta"]
[Result "1-0"]
[WhiteElo "1920"]
[BlackElo "1427"]
[TimeControl "300"]
[EndTime "16:08:37 PDT"]
[Termination "Shepherds_Pie won by resignation"]

1. c4 {[%clk 0:04:51.1]} 1... e6 {[%clk 0:04:56]} 2. Nc3 {[%clk 0:04:49.7]} 2...
f5 {[%clk 0:04:52.5]} 3. e4 {[%clk 0:04:47.5]} 3... fxe4 {[%clk 0:04:44.8]} 4.
d3 {[%clk 0:04:46.2]} 4... Nf6 {[%clk 0:04:33.8]} 5. Bg5 {[%clk 0:04:42.3]} 5...
Be7 {[%clk 0:04:28.5]} 6. Qd2 {[%clk 0:04:37.9]} 6... O-O {[%clk 0:04:12.3]} 7.
h4 {[%clk 0:04:34.6]} 7... d5 {[%clk 0:04:05.9]} 8. dxe4 {[%clk 0:04:29.9]} 8...
d4 {[%clk 0:04:03.3]} 9. e5 {[%clk 0:04:14.9]} 9... dxc3 {[%clk 0:04:01]} 10.
Qxd8 {[%clk 0:04:09.1]} 10... cxb2 {[%clk 0:03:45.1]} 11. Qxf8+ {[%clk
0:04:03.7]} 11... Bxf8 {[%clk 0:03:40.9]} 12. Rb1 {[%clk 0:04:01.9]} 12... Nfd7
{[%clk 0:03:26.1]} 13. Rxb2 {[%clk 0:03:58.4]} 13... Nxe5 {[%clk 0:03:24.6]} 14.
Bf4 {[%clk 0:03:55.8]} 14... Nbd7 {[%clk 0:02:51.7]} 15. Nf3 {[%clk 0:03:52.8]}
15... Nxf3+ {[%clk 0:02:45.3]} 16. gxf3 {[%clk 0:03:51.6]} 16... Bd6 {[%clk
0:02:36.8]} 17. Bxd6 {[%clk 0:03:48.8]} 17... cxd6 {[%clk 0:02:35.7]} 18. Bd3
{[%clk 0:03:46.4]} 18... b6 {[%clk 0:02:30]} 19. Be4 {[%clk 0:03:43.3]} 19...
Rb8 {[%clk 0:02:28.2]} 20. O-O {[%clk 0:03:42.1]} 20... Nf6 {[%clk 0:02:14.1]}
21. Rd1 {[%clk 0:03:39.4]} 21... d5 {[%clk 0:01:54.7]} 22. cxd5 {[%clk
0:03:37.8]} 22... exd5 {[%clk 0:01:53.6]} 23. Bxd5+ {[%clk 0:03:36.8]} 23...
Nxd5 {[%clk 0:01:49.9]} 24. Rxd5 {[%clk 0:03:34.7]} 24... Bb7 {[%clk 0:01:49.2]}
25. Rd3 {[%clk 0:03:30.2]} 25... Re8 {[%clk 0:01:31.5]} 26. Kg2 {[%clk
0:03:28.3]} 26... Ba6 {[%clk 0:01:25.3]} 27. Re3 {[%clk 0:03:26.7]} 1-0

[Event "Live Chess"]
[Site "Chess.com"]
[Date "2023.05.21"]
[Round "-"]
[White "Doge_Dandolo"]
[Black "HonestJoe1"]
[Result "0-1"]
[WhiteElo "2021"]
[BlackElo "2103"]
[TimeControl "300"]
[EndTime "16:08:49 PDT"]
[Termination "HonestJoe1 won by resignation"]

1. Nf3 {[%clk 0:04:56.6]} 1... c5 {[%clk 0:04:51.3]} 2. c4 {[%clk 0:04:55.5]}
2... Nf6 {[%clk 0:04:49.1]} 3. g3 {[%clk 0:04:54.1]} 3... g6 {[%clk 0:04:47.6]}
4. Bg2 {[%clk 0:04:53.1]} 4... Bg7 {[%clk 0:04:46.8]} 5. Nc3 {[%clk 0:04:52.5]}
5... O-O {[%clk 0:04:45.7]} 6. O-O {[%clk 0:04:51.9]} 6... Nc6 {[%clk
0:04:44.6]} 7. d4 {[%clk 0:04:50.3]} 7... cxd4 {[%clk 0:04:43.7]} 8. Nxd4 {[%clk
0:04:49.3]} 8... Ng4 {[%clk 0:04:42.8]} 9. Nc2 {[%clk 0:04:45.6]} 9... d6 {[%clk
0:04:38.6]} 10. Ne3 {[%clk 0:04:32.6]} 10... Bd7 {[%clk 0:04:14.3]} 11. Ned5
{[%clk 0:04:25.8]} 11... Nge5 {[%clk 0:03:57.4]} 12. Ne3 {[%clk 0:04:20.4]}
12... Be6 {[%clk 0:03:49.9]} 13. Ncd5 {[%clk 0:04:15.1]} 13... a6 {[%clk
0:03:42.3]} 14. Qc2 {[%clk 0:04:08.2]} 14... Rc8 {[%clk 0:03:39.5]} 15. Bd2
{[%clk 0:04:06.8]} 15... Nd4 {[%clk 0:03:27.6]} 16. Qd1 {[%clk 0:03:58]} 16...
Nxc4 {[%clk 0:03:22.6]} 17. Nxc4 {[%clk 0:03:56]} 17... Rxc4 {[%clk 0:03:21]}
18. e3 {[%clk 0:03:54.1]} 18... Nf5 {[%clk 0:02:44.9]} 19. Rc1 {[%clk
0:03:16.3]} 19... Rxc1 {[%clk 0:02:31.5]} 20. Qxc1 {[%clk 0:03:14.8]} 20... Bxd5
{[%clk 0:02:17.1]} 21. Bxd5 {[%clk 0:03:12.4]} 21... Qb6 {[%clk 0:02:06.7]} 22.
b3 {[%clk 0:03:06.4]} 22... e6 {[%clk 0:02:01.2]} 23. Bg2 {[%clk 0:03:04.2]}
23... d5 {[%clk 0:01:58.7]} 24. e4 {[%clk 0:03:00.9]} 24... dxe4 {[%clk
0:01:56.2]} 25. Bxe4 {[%clk 0:02:59.3]} 25... Nd6 {[%clk 0:01:54]} 26. Be3
{[%clk 0:02:55.9]} 26... Qa5 {[%clk 0:01:33.4]} 27. Bg2 {[%clk 0:02:52.8]} 27...
Rc8 {[%clk 0:01:23.3]} 28. Qd2 {[%clk 0:02:46.3]} 28... Qxd2 {[%clk 0:01:19.3]}
29. Bxd2 {[%clk 0:02:44.9]} 29... Rc2 {[%clk 0:01:10.2]} 30. Bb4 {[%clk
0:02:43.5]} 30... Bf8 {[%clk 0:01:01.1]} 31. Bxd6 {[%clk 0:02:39.4]} 31... Bxd6
{[%clk 0:01:00.1]} 32. Bxb7 {[%clk 0:02:38.1]} 32... Rxa2 {[%clk 0:00:58.9]} 33.
Rd1 {[%clk 0:02:36.7]} 33... Bc5 {[%clk 0:00:56.3]} 34. Rf1 {[%clk 0:02:25.4]}
34... Kg7 {[%clk 0:00:55.4]} 35. Kg2 {[%clk 0:02:21.2]} 35... Kf6 {[%clk
0:00:54.5]} 36. Kf3 {[%clk 0:02:17.8]} 36... Ra3 {[%clk 0:00:51.9]} 37. Ke2
{[%clk 0:02:15.1]} 37... a5 {[%clk 0:00:48.9]} 38. f4 {[%clk 0:02:09]} 38...
Rxb3 {[%clk 0:00:44.2]} 39. Ra1 {[%clk 0:02:07]} 39... Rxb7 {[%clk 0:00:39.9]}
0-1

[Event "Live Chess"]
[Site "Chess.com"]
[Date "2023.05.21"]
[Round "-"]
[White "WelshTiger"]
[Black "CameronM1234"]
[Result "1-0"]
[WhiteElo "2369"]
[BlackElo "1095"]
[TimeControl "300"]
[EndTime "16:08:54 PDT"]
[Termination "WelshTiger won on time"]

1. e4 {[%clk 0:04:58.9]} 1... g6 {[%clk 0:04:58.3]} 2. h3 {[%clk 0:04:56.9]}
2... Bg7 {[%clk 0:04:57.6]} 3. d4 {[%clk 0:04:55.2]} 3... d6 {[%clk 0:04:56.8]}
4. Nc3 {[%clk 0:04:54]} 4... Nf6 {[%clk 0:04:56]} 5. Nf3 {[%clk 0:04:52.9]} 5...
Nbd7 {[%clk 0:04:49.6]} 6. Bc4 {[%clk 0:04:51]} 6... O-O {[%clk 0:04:42.1]} 7.
O-O {[%clk 0:04:49.3]} 7... e5 {[%clk 0:04:40.6]} 8. Bg5 {[%clk 0:04:41.7]} 8...
h6 {[%clk 0:04:35.9]} 9. Bh4 {[%clk 0:04:40.9]} 9... g5 {[%clk 0:04:30.7]} 10.
Bg3 {[%clk 0:04:40.1]} 10... exd4 {[%clk 0:04:23.1]} 11. Nxd4 {[%clk 0:04:38.8]}
11... Re8 {[%clk 0:04:22.3]} 12. Re1 {[%clk 0:04:37.4]} 12... Nc5 {[%clk
0:04:10]} 13. f3 {[%clk 0:04:27.4]} 13... a6 {[%clk 0:03:55.2]} 14. a4 {[%clk
0:04:25.4]} 14... Bd7 {[%clk 0:03:51.1]} 15. Bf2 {[%clk 0:04:23.7]} 15... Re7
{[%clk 0:03:34.8]} 16. Qd2 {[%clk 0:04:22.1]} 16... Qe8 {[%clk 0:03:32.3]} 17.
a5 {[%clk 0:04:19.1]} 17... b5 {[%clk 0:03:21.8]} 18. axb6 {[%clk 0:04:17.4]}
18... cxb6 {[%clk 0:03:20.2]} 19. b4 {[%clk 0:04:16.6]} 19... Na4 {[%clk
0:03:08.5]} 20. Nxa4 {[%clk 0:04:13.6]} 20... Bxa4 {[%clk 0:03:07.9]} 21. Nf5
{[%clk 0:04:12]} 21... Rc7 {[%clk 0:03:01.9]} 22. Nxg7 {[%clk 0:04:07]} 22...
Kxg7 {[%clk 0:02:52.1]} 23. Bd3 {[%clk 0:04:06]} 23... Nd7 {[%clk 0:02:26.4]}
24. Rxa4 {[%clk 0:03:59.4]} 24... Nc5 {[%clk 0:02:17.4]} 25. Raa1 {[%clk
0:03:56]} 25... Nxd3 {[%clk 0:02:12.1]} 26. cxd3 {[%clk 0:03:53.5]} 26... Qb5
{[%clk 0:02:00.5]} 27. Bd4+ {[%clk 0:03:51.5]} 27... Kg8 {[%clk 0:01:55.7]} 28.
h4 {[%clk 0:03:49.1]} 28... Rac8 {[%clk 0:01:49]} 29. hxg5 {[%clk 0:03:48.1]}
29... Rc2 {[%clk 0:01:47.4]} 30. Qf4 {[%clk 0:03:44.9]} 30... Qxd3 {[%clk
0:01:40.2]} 31. Qf6 {[%clk 0:03:42.3]} 31... Kf8 {[%clk 0:00:58.8]} 32. Qxd6+
{[%clk 0:03:33.8]} 32... Kg8 {[%clk 0:00:46.9]} 33. Qf6 {[%clk 0:03:25.2]} 33...
Kf8 {[%clk 0:00:45.8]} 34. Qxh6+ {[%clk 0:03:13.7]} 34... Ke8 {[%clk 0:00:33.3]}
35. Rad1 {[%clk 0:03:10.3]} 35... Qc4 {[%clk 0:00:13.8]} 36. Qh8+ {[%clk
0:03:04.8]} 36... Kd7 {[%clk 0:00:13]} 37. Bf2+ {[%clk 0:02:56]} 37... Kc6
{[%clk 0:00:12.1]} 38. Qxc8+ {[%clk 0:02:53.6]} 38... Kb5 {[%clk 0:00:10.5]} 39.
Qd7+ {[%clk 0:02:50.9]} 39... Kxb4 {[%clk 0:00:08.7]} 40. Rd4 {[%clk 0:02:48.1]}
40... b5 {[%clk 0:00:06.2]} 41. Rxc4+ {[%clk 0:02:47]} 41... bxc4 {[%clk
0:00:05.2]} 42. Qb7+ {[%clk 0:02:45.4]} 42... Kc3 {[%clk 0:00:03.1]} 43. Qxa6
{[%clk 0:02:43.9]} 43... Rxf2 {[%clk 0:00:01]} 44. Rc1+ {[%clk 0:02:40.4]} 44...
Kd3 {[%clk 0:00:00.9]} 45. Qxc4+ {[%clk 0:02:35.7]} 45... Ke3 {[%clk 0:00:00.2]}
46. Qc5+ {[%clk 0:02:33.9]} 1-0

[Event "Live Chess"]
[Site "Chess.com"]
[Date "2023.05.21"]
[Round "-"]
[White "ShanthamGrarks"]
[Black "PaulHumphreys"]
[Result "1-0"]
[WhiteElo "1981"]
[BlackElo "1368"]
[TimeControl "300"]
[EndTime "16:09:03 PDT"]
[Termination "ShanthamGrarks won on time"]

1. d4 {[%clk 0:04:57.9]} 1... e6 {[%clk 0:04:52.7]} 2. e4 {[%clk 0:04:53.9]}
2... d5 {[%clk 0:04:49.3]} 3. Nc3 {[%clk 0:04:52.6]} 3... c5 {[%clk 0:04:45.6]}
4. exd5 {[%clk 0:04:50.9]} 4... cxd4 {[%clk 0:04:43.1]} 5. Qxd4 {[%clk
0:04:46.1]} 5... Nf6 {[%clk 0:04:29.2]} 6. Bg5 {[%clk 0:04:41.1]} 6... Be7
{[%clk 0:04:27.7]} 7. Bb5+ {[%clk 0:04:36.3]} 7... Bd7 {[%clk 0:04:22.8]} 8.
dxe6 {[%clk 0:04:33]} 8... Bxb5 {[%clk 0:04:17.4]} 9. exf7+ {[%clk 0:04:23.4]}
9... Kxf7 {[%clk 0:04:14.9]} 10. Qxd8 {[%clk 0:04:22]} 10... Rxd8 {[%clk
0:04:11.3]} 11. Nxb5 {[%clk 0:04:19.5]} 11... Nc6 {[%clk 0:04:08.6]} 12. Ne2
{[%clk 0:04:09.9]} 12... Nb4 {[%clk 0:04:01]} 13. Nbd4 {[%clk 0:03:54.8]} 13...
Rac8 {[%clk 0:03:55.2]} 14. c3 {[%clk 0:03:53]} 14... Nd3+ {[%clk 0:03:52]} 15.
Kf1 {[%clk 0:03:49.3]} 15... b6 {[%clk 0:03:35.8]} 16. Rb1 {[%clk 0:03:42.3]}
16... h6 {[%clk 0:03:32.4]} 17. Bxf6 {[%clk 0:03:25.1]} 17... Bxf6 {[%clk
0:03:29.9]} 18. g3 {[%clk 0:03:22.1]} 18... Ne5 {[%clk 0:03:22.6]} 19. Kg2
{[%clk 0:03:17.5]} 19... Re8 {[%clk 0:03:16.3]} 20. Nb5 {[%clk 0:03:12.5]} 20...
Nc4 {[%clk 0:03:09]} 21. Nf4 {[%clk 0:02:58.9]} 21... a6 {[%clk 0:03:03.2]} 22.
b3 {[%clk 0:02:40.3]} 22... axb5 {[%clk 0:02:59.6]} 23. bxc4 {[%clk 0:02:39.9]}
23... bxc4 {[%clk 0:02:58.3]} 24. Rxb6 {[%clk 0:02:38.6]} 24... Bxc3 {[%clk
0:02:53.6]} 25. Rd1 {[%clk 0:02:31.7]} 25... Be5 {[%clk 0:02:30.6]} 26. Rd7+
{[%clk 0:02:25.1]} 26... Kg8 {[%clk 0:02:24.8]} 27. Ng6 {[%clk 0:02:19.1]} 27...
Bd4 {[%clk 0:02:16.1]} 28. Rbb7 {[%clk 0:02:14.7]} 28... Bf6 {[%clk 0:02:07.9]}
29. Nf4 {[%clk 0:02:11.2]} 29... c3 {[%clk 0:02:04.4]} 30. Rbc7 {[%clk
0:01:53.8]} 30... c2 {[%clk 0:02:00.2]} 31. Nd3 {[%clk 0:01:49.6]} 31... Bg5
{[%clk 0:01:30.1]} 32. f4 {[%clk 0:01:45]} 32... Re2+ {[%clk 0:01:22]} 33. Kf3
{[%clk 0:01:40.5]} 33... Rxc7 {[%clk 0:01:17.4]} 34. Rxc7 {[%clk 0:01:32.5]}
34... Rd2 {[%clk 0:01:14.6]} 35. Rc8+ {[%clk 0:01:16]} 35... Kh7 {[%clk
0:01:11.6]} 36. fxg5 {[%clk 0:01:09.8]} 36... Rxd3+ {[%clk 0:01:09.6]} 37. Ke2
{[%clk 0:01:08.8]} 37... Ra3 {[%clk 0:00:58.3]} 38. gxh6 {[%clk 0:01:07.3]}
38... Rxa2 {[%clk 0:00:49.5]} 39. Kd2 {[%clk 0:01:05.1]} 39... Kxh6 {[%clk
0:00:44.2]} 40. Rxc2 {[%clk 0:00:58]} 40... Ra4 {[%clk 0:00:37.1]} 41. Ke2
{[%clk 0:00:56.8]} 41... Kg5 {[%clk 0:00:32.2]} 42. Kf2 {[%clk 0:00:51.1]} 42...
Kg4 {[%clk 0:00:30.5]} 43. Kg2 {[%clk 0:00:49.9]} 43... g5 {[%clk 0:00:26.3]}
44. h3+ {[%clk 0:00:47.4]} 44... Kh5 {[%clk 0:00:24.8]} 45. Re2 {[%clk
0:00:34.7]} 45... Ra5 {[%clk 0:00:20.3]} 46. Kf3 {[%clk 0:00:31.3]} 46... Kg6
{[%clk 0:00:18.3]} 47. g4 {[%clk 0:00:27.9]} 47... Ra3+ {[%clk 0:00:15.9]} 48.
Re3 {[%clk 0:00:27.4]} 48... Ra1 {[%clk 0:00:12.3]} 49. Re6+ {[%clk 0:00:23.4]}
49... Kf7 {[%clk 0:00:10.9]} 50. Rh6 {[%clk 0:00:19.4]} 50... Ra3+ {[%clk
0:00:09]} 51. Ke4 {[%clk 0:00:17.8]} 51... Kg7 {[%clk 0:00:06.6]} 52. Rc6 {[%clk
0:00:13.4]} 52... Rxh3 {[%clk 0:00:03.8]} 53. Kf5 {[%clk 0:00:12.8]} 1-0

[Event "Live Chess"]
[Site "Chess.com"]
[Date "2023.05.21"]
[Round "-"]
[White "Hussamalhaidar"]
[Black "LL220284LL"]
[Result "0-1"]
[WhiteElo "1039"]
[BlackElo "2389"]
[TimeControl "300"]
[EndTime "16:09:14 PDT"]
[Termination "LL220284LL won on time"]

1. e4 {[%clk 0:04:55.4]} 1... c6 {[%clk 0:04:57.6]} 2. b3 {[%clk 0:04:54.1]}
2... d6 {[%clk 0:04:55.6]} 3. Bb2 {[%clk 0:04:53.2]} 3... Nd7 {[%clk 0:04:51.9]}
4. Nf3 {[%clk 0:04:51.1]} 4... e5 {[%clk 0:04:51.2]} 5. Be2 {[%clk 0:04:45.5]}
5... Ngf6 {[%clk 0:04:49.7]} 6. d3 {[%clk 0:04:40.5]} 6... g6 {[%clk 0:04:47.7]}
7. Nbd2 {[%clk 0:04:37.4]} 7... Bg7 {[%clk 0:04:45.3]} 8. O-O {[%clk 0:04:34.7]}
8... O-O {[%clk 0:04:43.4]} 9. h3 {[%clk 0:04:32.1]} 9... Qc7 {[%clk 0:04:41.6]}
10. d4 {[%clk 0:04:23.4]} 10... exd4 {[%clk 0:04:38.8]} 11. Nxd4 {[%clk
0:04:13.9]} 11... Re8 {[%clk 0:04:36.7]} 12. e5 {[%clk 0:03:54.4]} 12... dxe5
{[%clk 0:04:32.5]} 13. N4f3 {[%clk 0:03:44.6]} 13... e4 {[%clk 0:04:31.9]} 14.
Ng5 {[%clk 0:03:37.2]} 14... h6 {[%clk 0:04:29.7]} 15. Ngxe4 {[%clk 0:03:24]}
15... Nxe4 {[%clk 0:04:28.2]} 16. Bxg7 {[%clk 0:03:16.3]} 16... Kxg7 {[%clk
0:04:28.1]} 17. Nf3 {[%clk 0:03:08.4]} 17... Ndf6 {[%clk 0:04:25.2]} 18. Qd4
{[%clk 0:02:58.6]} 18... Bf5 {[%clk 0:04:17.9]} 19. Bd3 {[%clk 0:02:38.5]} 19...
Rad8 {[%clk 0:04:15.2]} 20. Qxa7 {[%clk 0:02:29.6]} 20... Nd6 {[%clk 0:04:06.8]}
21. Bxf5 {[%clk 0:02:21.6]} 21... Nxf5 {[%clk 0:04:06.7]} 22. Rad1 {[%clk
0:02:14.2]} 22... Ra8 {[%clk 0:04:00.6]} 23. Qc5 {[%clk 0:02:02.1]} 23... Rxa2
{[%clk 0:03:59.3]} 24. c4 {[%clk 0:01:51]} 24... Ne4 {[%clk 0:03:53.2]} 25. Qb4
{[%clk 0:01:30.4]} 25... Qa5 {[%clk 0:03:43.4]} 26. Qxb7 {[%clk 0:01:14.1]}
26... Nc3 {[%clk 0:03:32.4]} 27. Rde1 {[%clk 0:00:54.1]} 27... Rxe1 {[%clk
0:03:25.9]} 28. Nxe1 {[%clk 0:00:25.3]} 28... Ne2+ {[%clk 0:03:23.4]} 29. Kh2
{[%clk 0:00:19.3]} 29... Ned4 {[%clk 0:03:22.1]} 30. Nd3 {[%clk 0:00:16.1]}
30... Qd2 {[%clk 0:03:19.2]} 31. Ne5 {[%clk 0:00:11.6]} 31... Qf4+ {[%clk
0:03:17.7]} 32. g3 {[%clk 0:00:09.5]} 32... Qxe5 {[%clk 0:03:17.1]} 33. Kg1
{[%clk 0:00:04.2]} 33... Qe4 {[%clk 0:03:15.7]} 0-1